Posting Date,Expenditure Area,Supplier Name,Net Amount,Expense Type,Reason for Expense 
22-May-19,Culture & Environment Services,Ac Leigh (Norwich) Ltd,48.40,Equipment / Furniture / Materials,Replacement code lock for the cleaning cupboard
28-May-19,Culture & Environment Services,Aldi 89 776,31.66,Miscellaneous Expenses,refreshments for volunteers
28-May-19,Culture & Environment Services,Aldi 89 776,19.16,Miscellaneous Expenses,refreshments for volunteers
13-May-19,Culture & Environment Services,Amazon Prime,7.99,Stationery,Ordered in error
16-May-19,Culture & Environment Services,Amazon Prime Amzn.Co.Uk/P,-7.99,Stationery,Ordered in error
06-May-19,Culture & Environment Services,Amazon.Co.Uk,14.24,Equipment / Furniture / Materials,Pin Board for feedback
09-May-19,Culture & Environment Services,Amazon.Co.Uk,18.74,Equipment / Furniture / Materials,disposable gloves for cleaning and office use x3
17-May-19,Culture & Environment Services,Amazon.Co.Uk,14.47,Equipment / Furniture / Materials,Oxford - Bike Anchor for Cemetery Office
27-May-19,Culture & Environment Services,Amazon.Co.Uk,48.74,Equipment / Furniture / Materials,Display Case
17-May-19,Culture & Environment Services,Amazon.Co.Uk,2.50,Materials and Supplies - Miscellaneous,Purchase of permanent markers for Wildlife Team
07-May-19,Culture & Environment Services,Amazon.Co.Uk,4.69,Specific Campaigns / Projects expenditure,Rounders Ball
17-May-19,Culture & Environment Services,Amazon.Co.Uk,18.40,Stationery,"Staplers and Staples, Blue Tac"
01-May-19,Culture & Environment Services,Amzn Mktp Uk,291.67,Direct Transport Costs,2x tablets
20-May-19,Culture & Environment Services,Amzn Mktp Uk,335.00,Direct Transport Costs,2x Samsung tablets
16-May-19,Culture & Environment Services,Amzn Mktp Uk,10.82,Equipment / Furniture / Materials,Big round balloons
16-May-19,Culture & Environment Services,Amzn Mktp Uk,43.96,Equipment / Furniture / Materials,Christmas party
16-May-19,Culture & Environment Services,Amzn Mktp Uk,5.00,Equipment / Furniture / Materials,Christmas party
16-May-19,Culture & Environment Services,Amzn Mktp Uk,5.82,Equipment / Furniture / Materials,Christmas party
16-May-19,Culture & Environment Services,Amzn Mktp Uk,15.00,Equipment / Furniture / Materials,Christmas party
16-May-19,Culture & Environment Services,Amzn Mktp Uk,5.82,Equipment / Furniture / Materials,Christmas party
16-May-19,Culture & Environment Services,Amzn Mktp Uk,10.00,Equipment / Furniture / Materials,Pink place cards
17-May-19,Culture & Environment Services,Amzn Mktp Uk,12.94,Equipment / Furniture / Materials,x1 triceps pull down bar for profiles
20-May-19,Culture & Environment Services,Amznmktplace,11.23,Direct Transport Costs,phone case
01-May-19,Culture & Environment Services,Amznmktplace,8.32,Equipment / Furniture / Materials,Water metre 
06-May-19,Culture & Environment Services,Amznmktplace,21.98,Equipment / Furniture / Materials,Bunting
06-May-19,Culture & Environment Services,Amznmktplace,0.79,Equipment / Furniture / Materials,notice board pins
06-May-19,Culture & Environment Services,Amznmktplace,143.32,Equipment / Furniture / Materials,Zoom Voice Recorder for Council Meetings
10-May-19,Culture & Environment Services,Amznmktplace,9.91,Equipment / Furniture / Materials,LAT bar for profiles fitness
13-May-19,Culture & Environment Services,Amznmktplace,19.97,Equipment / Furniture / Materials,tricep ropes for profiles x3
16-May-19,Culture & Environment Services,Amznmktplace,11.23,Equipment / Furniture / Materials,swiss ball x1 for profiles
16-May-19,Culture & Environment Services,Amznmktplace,15.98,Equipment / Furniture / Materials,x5 jug pitchers for parties
17-May-19,Culture & Environment Services,Amznmktplace,10.82,Equipment / Furniture / Materials,x1 exercise band handles for profiles
23-May-19,Culture & Environment Services,Amznmktplace,39.99,Equipment / Furniture / Materials,Additional Paper Bag Stock
27-May-19,Culture & Environment Services,Amznmktplace,40.07,Equipment / Furniture / Materials,Trolley for Teas and Coffees.
16-May-19,Culture & Environment Services,Amznmktplace,8.32,Materials and Supplies - Miscellaneous,A3 Plastic wallets - Christchurch Park
16-May-19,Culture & Environment Services,Amznmktplace,1.62,Materials and Supplies - Miscellaneous,Purchase of sunflower seeds for Wildlife Event
16-May-19,Culture & Environment Services,Amznmktplace,16.15,Materials and Supplies - Miscellaneous,Purchase of Velcro for OCP notice boards
17-May-19,Culture & Environment Services,Amznmktplace,14.16,Materials and Supplies - Miscellaneous,Purchase of scissors for Wildlife Team
20-May-19,Culture & Environment Services,Amznmktplace,2.49,Materials and Supplies - Miscellaneous,Purchase of string for Wildlife event
06-May-19,Culture & Environment Services,Amznmktplace,39.29,Specific Campaigns / Projects expenditure,Kwik Cricket Kit
07-May-19,Culture & Environment Services,Amznmktplace,49.14,Specific Campaigns / Projects expenditure,Badminton Net
08-May-19,Culture & Environment Services,Amznmktplace,19.16,Specific Campaigns / Projects expenditure,Rounders Set
15-May-19,Culture & Environment Services,Amznmktplace,7.49,Stationery,Ball Point Pens
01-May-19,Culture & Environment Services,Amznmktplace Amazon.Co.Uk,16.58,Direct Transport Costs,5x USB car charger adapters
03-May-19,Culture & Environment Services,Amznmktplace Amazon.Co.Uk,4.57,Direct Transport Costs,USB charger cable
03-May-19,Culture & Environment Services,Amznmktplace Amazon.Co.Uk,4.57,Direct Transport Costs,USB charger cable
23-May-19,Culture & Environment Services,Amznmktplace Amazon.Co.Uk,12.06,Direct Transport Costs,2x USB C Cables
16-May-19,Culture & Environment Services,Amznmktplace Amazon.Co.Uk,78.50,Equipment / Furniture / Materials,Chair sashes
16-May-19,Culture & Environment Services,Amznmktplace Amazon.Co.Uk,9.92,Equipment / Furniture / Materials,Yellow place cards
17-May-19,Culture & Environment Services,Amznmktplace Amazon.Co.Uk,18.30,Equipment / Furniture / Materials,Lime green place cards
17-May-19,Culture & Environment Services,Amznmktplace Amazon.Co.Uk,2.08,Equipment / Furniture / Materials,Notice board hooks
17-May-19,Culture & Environment Services,Anglia Tool Centre,124.68,Miscellaneous Stock  - Purchases,Makita Angle Grinder - Landscape Team
17-May-19,Culture & Environment Services,Aquatoys,649.98,Equipment / Furniture / Materials,3 x Aqua Scooters
10-May-19,Culture & Environment Services,Argos Ltd,8.32,Equipment / Furniture / Materials,SD Card for Council meeting Voice recorder
23-May-19,Culture & Environment Services,Argos Ltd,8.32,Equipment / Furniture / Materials,USB stick for CCTV 
06-May-19,Culture & Environment Services,Argos Ltd,24.99,Miscellaneous Stock  - Purchases,Cable adaptor for the projector in the Education Room
06-May-19,Culture & Environment Services,Asda Petrol 4278,66.67,Direct Transport Costs,diesel fuel for GV12 SWJ
27-May-19,Culture & Environment Services,Asda Petrol 4278,66.67,Direct Transport Costs,diesel fuel for GV12 SWJ
31-May-19,Culture & Environment Services,Asda Petrol 4278,66.23,Direct Transport Costs,60.35l diesel DY56 VKD
13-May-19,Culture & Environment Services,Asda Stores 4278,93.24,Catering/Beverages,Catering Order - Recharge
20-May-19,Culture & Environment Services,Asda Stores 4278,21.59,Catering/Beverages,"Bread, Milk, Lemons & Limes"
01-May-19,Culture & Environment Services,Asda Stores 4278,1.09,Miscellaneous Expenses,milk for tea/coffee volunteer refreshments
31-May-19,Culture & Environment Services,Asda Stores 4278,1.09,Miscellaneous Expenses,milk - refreshments for volunteers
06-May-19,Culture & Environment Services,B & M Retail,10.05,Equipment / Furniture / Materials,Ant traps Dressing room 1 and production room
15-May-19,Culture & Environment Services,B & M Retail,0.91,Equipment / Furniture / Materials,Milk for 50 +
13-May-19,Culture & Environment Services,B & Q 1315,2.72,Equipment / Furniture / Materials,Clips for events bin lid trials
16-May-19,Culture & Environment Services,B & Q 1315,11.67,Equipment / Furniture / Materials,Bronze Plastikote - Headstone Inscription
29-May-19,Culture & Environment Services,B & Q 1315,49.12,Equipment / Furniture / Materials,"EV1920 Water Butt, Hose Pipe & Accessories"
03-May-19,Culture & Environment Services,B & Q 1315,43.62,Materials and Supplies - Miscellaneous,FUR OIL 2L AND 5 SAND SPONGES.
17-May-19,Culture & Environment Services,B & Q 1315,13.28,Materials and Supplies - Miscellaneous,Compost for BM - Christchurch Hub
23-May-19,Culture & Environment Services,B & Q 1315,62.10,Materials and Supplies - Miscellaneous,2x paint brush 4x Sand Sponge 2x Furn Oil 1L
29-May-19,Culture & Environment Services,B & Q 1315,31.67,Materials and Supplies - Miscellaneous,Furn oil 2L
29-May-19,Culture & Environment Services,B & Q 1315,60.00,Materials and Supplies - Miscellaneous,spray paint for town planters project
01-May-19,Culture & Environment Services,B & Q 1315,28.05,Miscellaneous Stock  - Purchases,Timber & Bracket - NEWBURY REC - Landscape Team
21-May-19,Culture & Environment Services,B & Q 1315,29.87,Miscellaneous Stock  - Purchases,Rapid Cement - NEWBURY REC - Landscape Team
14-May-19,Culture & Environment Services,B&m Retail,10.00,Equipment / Furniture / Materials,x2 storage plastic containers for xtreme active equipment
09-May-19,Culture & Environment Services,B&m Retail,49.97,Materials and Supplies - Miscellaneous,x1 fork x2 spades - Christchurch Hub
01-May-19,Culture & Environment Services,B&m Retail Ltd,0.66,Miscellaneous Stock  - Purchases,Wash liquid for wetpour - NEWBURY REC- Landscape Team
13-May-19,Culture & Environment Services,Bag Agg Ltd,17.00,Miscellaneous Stock  - Purchases,Ballast - WHITTON REC GOALS - Landscape Team
14-May-19,Culture & Environment Services,Bag Agg Ltd,50.00,Miscellaneous Stock  - Purchases,Ballast - STUTTON PRIMARY - Landscape Team
22-May-19,Culture & Environment Services,Bag Agg Ltd,50.00,Miscellaneous Stock  - Purchases,Ballast - ROYAL GREEN LOWESTOFT - Landscape Team
27-May-19,Culture & Environment Services,Bag Agg Ltd,50.00,Miscellaneous Stock  - Purchases,Ballast - ROYAL GREEN LOWESTOFT - Landscape Team
30-May-19,Culture & Environment Services,Bag Agg Ltd,27.25,Miscellaneous Stock  - Purchases,Type 1 Granite - KETTLEBASTON PLAY AREA - Landscape Team
31-May-19,Culture & Environment Services,Bag Agg Ltd,38.80,Miscellaneous Stock  - Purchases,Ballast - KETTLEBASTON PLAY AREA - Landscape Team
10-May-19,Culture & Environment Services,Bolton Stores,6.52,Materials and Supplies - Miscellaneous,Tea/Coffee/Sugar - Education Room
15-May-19,Culture & Environment Services,Booker Limited Ipswich,28.77,Catering/Beverages,"Items for European Elections, cordials & Mints for conferenc"
15-May-19,Culture & Environment Services,Booker Limited Ipswich,14.38,Catering/Beverages,"Items for European Elections, cordials & Mints for conferenc"
15-May-19,Culture & Environment Services,Booker Limited Ipswich,99.80,Catering/Beverages,"Items for European Elections, cordials & Mints for conferenc"
15-May-19,Culture & Environment Services,Booker Limited Ipswich,7.64,Equipment / Furniture / Materials,Liquid for Cornhill cleaning
17-May-19,Culture & Environment Services,Boots 1833,6.67,Cleaning Supplies,hand sanitiser
14-May-19,Culture & Environment Services,British Standards,12.00,Miscellaneous Stock  - Purchases,Required standards info
06-May-19,Culture & Environment Services,Bunzl,157.00,Cleaning Supplies,Cleaning Supplies Holywells park
06-May-19,Culture & Environment Services,Bunzl,189.02,Cleaning Supplies,Cleaning Supplies Old Foundry road toilets
17-May-19,Culture & Environment Services,Bunzl,201.96,Cleaning Supplies,Old Foundry Toilets Cleaning Supplies
22-May-19,Culture & Environment Services,Bunzl,96.19,Cleaning Supplies,Cleaning supplies
17-May-19,Culture & Environment Services,Bunzl Cleaning & Hygie,52.60,Equipment / Furniture / Materials,toilet roll holders
09-May-19,Culture & Environment Services,Bypass Nurseries,54.56,Materials and Supplies - Miscellaneous,piracntha to cover drug spot
02-May-19,Culture & Environment Services,Caffe Nero - 101,6.83,Miscellaneous Expenses,Meeting Refreshments
16-May-19,Culture & Environment Services,Cartridge Save,23.44,Stationery,Printer Cartridges - Crematorium
03-May-19,Culture & Environment Services,Chopstix Restaurant,5.42,Miscellaneous Stock  - Purchases,Meal for staff - WATERTOWER PA - Landscape Team
06-May-19,Culture & Environment Services,Coast To Coast 7525,46.62,Miscellaneous Expenses,Staff Welfare
14-May-19,Culture & Environment Services,Coastal Building Suppl,24.00,Insurance Premiums - Supplies and Services,fence panel replacement
10-May-19,Culture & Environment Services,Collier&catchpole,113.73,Miscellaneous Stock  - Purchases,Line Marker & Cement - WHITTON REC GOALS - Landscape Team
17-May-19,Culture & Environment Services,Collier&catchpole,185.00,Miscellaneous Stock  - Purchases,Multitrack - LOWESTOFT - Landscape Team
29-May-19,Culture & Environment Services,Collier&catchpole,209.81,Miscellaneous Stock  - Purchases,Geotextile Multitrack - JUBILEE PARK - Landscape Team
06-May-19,Culture & Environment Services,Country Collection,500.00,Miscellaneous Stock  - Purchases,Concrete for Peterborough play area installation
31-May-19,Culture & Environment Services,Cps Fuels Ltd,486.28,Parks Vehicle Costs,RED DIESEL
31-May-19,Culture & Environment Services,Cps Fuels Ltd,"1,235.00",Parks Vehicle Costs,Red diesel Chantry
21-May-19,Culture & Environment Services,Cpw Locksmiths And Securi,29.17,Equipment / Furniture / Materials,Key Cutting
13-May-19,Culture & Environment Services,Dale Sauna Ltd,348.43,Cleaning Supplies,pool chemicals
16-May-19,Culture & Environment Services,Dale Sauna Ltd,808.90,Cleaning Supplies,pool chemicals
13-May-19,Culture & Environment Services,Dart-Charge,10.00,Direct Transport Costs,Dart charge used and top up AV58NYB
02-May-19,Culture & Environment Services,Decathlon UK Vad,26.63,Equipment / Furniture / Materials,x4 squash rackets
27-May-19,Culture & Environment Services,Denney Diving,254.09,Equipment / Furniture / Materials,New snorkelling equipment for the summer holiday programme
29-May-19,Culture & Environment Services,Dobbies,294.90,Materials and Supplies - Miscellaneous,Various Plants - CORNHILL PLANTERS
10-May-19,Culture & Environment Services,Dunelm Ltd,4.00,Equipment / Furniture / Materials,Clips for events bin trial
10-May-19,Culture & Environment Services,Dvla Dup Reg Doc,20.83,Materials and Supplies - Miscellaneous,Duplicate DVLA V5 for stolen Quad Bike for Zurich insurers
09-May-19,Culture & Environment Services,Dvla Vehicle Tax,262.50,Direct Transport Costs,Vehicle Tax for AV12 LFW
10-May-19,Culture & Environment Services,Dvla Vehicle Tax,262.50,Direct Transport Costs,vehicle tax av10ukd
10-May-19,Culture & Environment Services,Dvla Vehicle Tax,262.50,Direct Transport Costs,Vehicle tax for AP04MFV
10-May-19,Culture & Environment Services,Dvla Vehicle Tax,262.50,Direct Transport Costs,vehicle tax for AV10KXG
10-May-19,Culture & Environment Services,Dvla Vehicle Tax,262.50,Direct Transport Costs,Vehicle Tax for AV10KXL
10-May-19,Culture & Environment Services,Dvla Vehicle Tax,262.50,Direct Transport Costs,Vehicle Tax for AV10LMO
10-May-19,Culture & Environment Services,Dvla Vehicle Tax,262.50,Direct Transport Costs,Vehicle Tax for AV10LYZ
10-May-19,Culture & Environment Services,Dvla Vehicle Tax,262.50,Direct Transport Costs,Vehicle Tax for AV10LZC
10-May-19,Culture & Environment Services,Dvla Vehicle Tax,262.50,Direct Transport Costs,Vehicle Tax for AV10MXK
10-May-19,Culture & Environment Services,Dvla Vehicle Tax,262.50,Direct Transport Costs,vehicle tax for AV10OPF
10-May-19,Culture & Environment Services,Dvla Vehicle Tax,262.50,Direct Transport Costs,vehicle tax for AV10UKB
10-May-19,Culture & Environment Services,Dvla Vehicle Tax,262.50,Direct Transport Costs,vehicle tax for AV10UKC
10-May-19,Culture & Environment Services,Dvla Vehicle Tax,262.50,Direct Transport Costs,vehicle tax for AV10UKF
10-May-19,Culture & Environment Services,Dvla Vehicle Tax,262.50,Direct Transport Costs,vehicle tax for AV10VXY
10-May-19,Culture & Environment Services,Dvla Vehicle Tax,262.50,Direct Transport Costs,vehicle tax for AV10XVM
10-May-19,Culture & Environment Services,Dvla Vehicle Tax,162.50,Direct Transport Costs,Vehicle Tax for AV11 XCR
10-May-19,Culture & Environment Services,Dvla Vehicle Tax,722.50,Direct Transport Costs,vehicle tax for AV11XBC
10-May-19,Culture & Environment Services,Dvla Vehicle Tax,162.50,Direct Transport Costs,Vehicle Tax for AY18DNJ
10-May-19,Culture & Environment Services,Dvla Vehicle Tax,167.50,Direct Transport Costs,Vehicle Tax for AY18DTZ
10-May-19,Culture & Environment Services,Dvla Vehicle Tax,167.50,Direct Transport Costs,Vehicle Tax for GN11 HVK
10-May-19,Culture & Environment Services,Dvla Vehicle Tax,262.50,Parks Vehicle Costs,Vehicle Tax for AR07 CZV
10-May-19,Culture & Environment Services,Dvla Vehicle Tax,262.50,Parks Vehicle Costs,Vehicle Tax for AR07DWO
10-May-19,Culture & Environment Services,Dvla Vehicle Tax,262.50,Parks Vehicle Costs,Vehicle Tax for AR07DXE
10-May-19,Culture & Environment Services,Dvla Vehicle Tax,262.50,Parks Vehicle Costs,Vehicle Tax for AU17 HPP
10-May-19,Culture & Environment Services,Dvla Vehicle Tax,262.50,Parks Vehicle Costs,Vehicle Tax for AV10VXZ
10-May-19,Culture & Environment Services,Dvla Vehicle Tax,262.50,Parks Vehicle Costs,Vehicle Tax for FG16 LJA
10-May-19,Culture & Environment Services,Dvla Vehicle Tax,262.50,Parks Vehicle Costs,Vehicle Tax for FL16KPX
09-May-19,Culture & Environment Services,Dvsa,32.50,Direct Transport Costs,Plating certificate for AY64 LRZ and AV11 XCR
10-May-19,Culture & Environment Services,Dvsa,10.83,Direct Transport Costs,plating certificate for AV13 OPU
23-May-19,Culture & Environment Services,Eastern Hose & Hydraul,9.29,Equipment / Furniture / Materials,Hose repair
09-May-19,Culture & Environment Services,Electric Center,5.50,Materials and Supplies - Miscellaneous,ACEL AC49259 TUBE T8 58W 1500MM 3500K
20-May-19,Culture & Environment Services,Elite Academy Ltd,350.00,Training Expenses,CCTV training x 2 staff from parking services
20-May-19,Culture & Environment Services,Elite Academy Ltd,195.83,Training Expenses,SIA licence training
24-May-19,Culture & Environment Services,Elite Industrial Suppl,22.77,Clothing / Uniform & Laundry,2 x XL Friends of Murray Park Hi Vis Vests
29-May-19,Culture & Environment Services,Elmers Hardware,3.33,Equipment / Furniture / Materials,x2 drill bits - Cemeteries
16-May-19,Culture & Environment Services,Emorsgate Seed,"1,579.22",Miscellaneous Stock  - Purchases,Sproughton seeds
10-May-19,Culture & Environment Services,Eoe Co-Op,3.31,Materials and Supplies - Miscellaneous,Batteries for Endscope
30-May-19,Culture & Environment Services,Eoe Co-Op,3.49,Miscellaneous Stock  - Purchases,Water for staff - Landscape Team
22-May-19,Culture & Environment Services,Fenland Leisure Products,582.00,Miscellaneous Stock  - Purchases,Rubber crumb - NEWBURY REC
20-May-19,Culture & Environment Services,Firstaid4less.Co.Uk,76.70,Cleaning Supplies,1st Aid Supplies
03-May-19,Culture & Environment Services,Fully Charged Live,55.00,Conference/Seminar Expenses,Vehicle show booked for June 
03-May-19,Culture & Environment Services,Gen Register Office,25.00,Equipment / Furniture / Materials,Copy of birth certificates to locate nok for public health
20-May-19,Culture & Environment Services,Greater Anglia Trains,65.25,Use Of Public Transport,rail travel to SIA training course
22-May-19,Culture & Environment Services,Guardian News & Media,141.67,Advertising/Publicity,Additional VAT payments GM Theatres newspaper advert
13-May-19,Culture & Environment Services,Halfords 0883,14.00,Parks Vehicle Costs,Fuses for work vehicle
10-May-19,Culture & Environment Services,Harbour Lights,250.00,Miscellaneous Stock  - Purchases,Part payment for accommodation - LOWESTOFT - Landscape Team
10-May-19,Culture & Environment Services,Harbour Lights,250.00,Miscellaneous Stock  - Purchases,Part payment for accommodation - LOWESTOFT - Landscape Team
03-May-19,Culture & Environment Services,Harbro Supplies Ltd,173.87,Equipment / Furniture / Materials,tools and equipment for stonemasons
06-May-19,Culture & Environment Services,Hg Gladwell & Sons,56.04,Materials and Supplies - Miscellaneous,X5 sacks for duckfood - Christchurch Hub
08-May-19,Culture & Environment Services,Hg Gladwell & Sons,22.42,Materials and Supplies - Miscellaneous,Holywells Duck Food x2 sacs
30-May-19,Culture & Environment Services,Homebase Ltd,36.25,Miscellaneous Stock  - Purchases,Folding knife/tape measure - ROYAL GREEN LOWESTOFT
27-May-19,Culture & Environment Services,Horticultural Sppls Ltd,71.51,Materials and Supplies - Miscellaneous,Tools & Bug spray - Christchurch Hub
03-May-19,Culture & Environment Services,Hotels.Com158400171408,46.00,Miscellaneous Stock  - Purchases,Accommodation for NS - WATERTOWER PLAY AREA - Landscape Team
13-May-19,Culture & Environment Services,Hussey Knights Ltd,25.50,Miscellaneous Stock  - Purchases,meals for Staff - ROYAL GREEN LOWESTOFT
30-May-19,Culture & Environment Services,Hussey Knights Ltd,11.83,Miscellaneous Stock  - Purchases,Plans for Jubilee Park - Landscape Team
10-May-19,Culture & Environment Services,Indespension,17.75,Miscellaneous Stock  - Purchases,Jockey Wheel - Landscape Team
13-May-19,Culture & Environment Services,Indespension,12.25,Miscellaneous Stock  - Purchases,Hitchlock - Landscape Team
29-May-19,Culture & Environment Services,Industrial Chemicals,290.00,Cleaning Supplies,Chlorine
16-May-19,Culture & Environment Services,Inn-Dispensable Bus S Lt,148.33,Training/Courses Running Costs,Personal Licence Course
03-May-19,Culture & Environment Services,J P Lennard Ltd,151.05,Equipment / Furniture / Materials,x1 tennis net
21-May-19,Culture & Environment Services,J S Popcorn,176.64,Catering/Beverages,Popcorn for Bars
09-May-19,Culture & Environment Services,Jacksons - Peterborough,99.60,Miscellaneous Stock  - Purchases,Ballast - WATERTOWER - Landscape Team
13-May-19,Culture & Environment Services,Jacksons - Peterborough,2.00,Miscellaneous Stock  - Purchases,Cable ties - Landscape Team
14-May-19,Culture & Environment Services,Joseph Conrad,16.83,Miscellaneous Stock  - Purchases,Meals 4 staff - ROYAL GREEN LOWESTOFT
15-May-19,Culture & Environment Services,Joseph Conrad,15.75,Miscellaneous Stock  - Purchases,Meals 4 staff - ROYAL GREEN LOWESTOFT
16-May-19,Culture & Environment Services,Joseph Conrad,14.42,Miscellaneous Stock  - Purchases,Meals 4 staff - ROYAL GREEN LOWESTOFT
17-May-19,Culture & Environment Services,Joseph Conrad,14.71,Miscellaneous Stock  - Purchases,Meals 4 staff - ROYAL GREEN LOWESTOFT
21-May-19,Culture & Environment Services,Joseph Conrad,16.83,Miscellaneous Stock  - Purchases,Meals 4 staff - ROYAL GREEN LOWESTOFT
22-May-19,Culture & Environment Services,Joseph Conrad,34.12,Miscellaneous Stock  - Purchases,Meals for staff - ROYAL GREEN LOWESTOFT
23-May-19,Culture & Environment Services,Joseph Conrad,14.42,Miscellaneous Stock  - Purchases,Meals for staff - ROYAL GREEN LOWESTOFT
24-May-19,Culture & Environment Services,Joseph Conrad,15.92,Miscellaneous Stock  - Purchases,Meals for staff - ROYAL GREEN LOWESTOFT
31-May-19,Culture & Environment Services,Joseph Conrad,7.50,Miscellaneous Stock  - Purchases,Meal for Staff - ROYAL GREEN LOWESTOFT
09-May-19,Culture & Environment Services,Karzees Ltd,215.00,Equipment Hire,hire of portable toilets for public event
20-May-19,Culture & Environment Services,Katies Garden,27.46,Materials and Supplies - Miscellaneous,Various plants - Christchurch Hub
03-May-19,Culture & Environment Services,Kfc - Peterborough,1.66,Miscellaneous Stock  - Purchases,Meal for staff - WATERTOWER PA - Landscape Team
02-May-19,Culture & Environment Services,Kings,10.21,Equipment / Furniture / Materials,Main Gas Cupboard Keys - Crem
09-May-19,Culture & Environment Services,Kings,12.50,Materials and Supplies - Miscellaneous,3 x Cylinder key
22-May-19,Culture & Environment Services,Kings,25.83,Materials and Supplies - Miscellaneous,4x CYLINDER KEY AND 1X MORTICE KEY
23-May-19,Culture & Environment Services,Kings,11.67,Materials and Supplies - Miscellaneous,3x Cylinder key
29-May-19,Culture & Environment Services,Kings,8.33,Materials and Supplies - Miscellaneous,2x Cylinder key
15-May-19,Culture & Environment Services,Lanyards Tomorrow,5.00,Equipment / Furniture / Materials,Laynards for contractore
31-May-19,Culture & Environment Services,Lidl Gb Ipswich,8.47,Cleaning Supplies,Cleaning equipment for HEARS alarms
17-May-19,Culture & Environment Services,Lumberjacks,72.80,Materials and Supplies - Miscellaneous,Decking & Screws - HOLYWELLS P A - Landscape Team
17-May-19,Culture & Environment Services,Lumberjacks,-23.67,Materials and Supplies - Miscellaneous,REFUND FOR AN OVERCHARGE
27-May-19,Culture & Environment Services,Machine Mart Ltd,-56.99,Miscellaneous Stock  - Purchases,Refund for tools - Landscape Team
27-May-19,Culture & Environment Services,Machine Mart Ltd,62.48,Miscellaneous Stock  - Purchases,Various Tools - Landscape Team
27-May-19,Culture & Environment Services,Makro Self Service Ipswic,204.86,Catering/Beverages,Additional Stock
07-May-19,Culture & Environment Services,Makro Self Service Ipswic,45.37,Equipment / Furniture / Materials,Bearers Room Supplies - Tea / Coffee
21-May-19,Culture & Environment Services,Manomanouk,610.00,Equipment / Furniture / Materials,New Sea Scooters for Summer holiday programme
09-May-19,Culture & Environment Services,Manorside Coaches Ltd,266.67,Contract Hire - Vehicles,hire of minicoach and driver for event shuttle
01-May-19,Culture & Environment Services,McDonalds,8.32,Miscellaneous Stock  - Purchases,Meals whilst working in Peterborough
08-May-19,Culture & Environment Services,Mde Electrical Supplie,16.00,Equipment / Furniture / Materials,x2 pp9 batteries and x10 aa industrial battery
13-May-19,Culture & Environment Services,Mde Electrical Supplie,16.50,Equipment / Furniture / Materials,x10 9v industrial batteries
17-May-19,Culture & Environment Services,Mde Electrical Supplie,1.50,Equipment / Furniture / Materials,x10 10 amp fuses
31-May-19,Culture & Environment Services,Mde Electrical Supplie,9.98,Equipment / Furniture / Materials,x2 triphosphor tube lights for office
08-May-19,Culture & Environment Services,Meon Ltd,306.60,Materials and Supplies - Miscellaneous,Line Marking paint 
01-May-19,Culture & Environment Services,Mick George Ltd,25.00,Miscellaneous Stock  - Purchases,additional charge for skip - WATERTOWER PA - Landscape Team
16-May-19,Culture & Environment Services,Morplan Ltd,41.30,Miscellaneous Expenses,point of sale items
03-May-19,Culture & Environment Services,Newitts.Com,48.07,Specific Campaigns / Projects expenditure,KWIK CRICKET KIT
03-May-19,Culture & Environment Services,Newitts.Com,44.95,Specific Campaigns / Projects expenditure,ROUNDERS SET
08-May-19,Culture & Environment Services,Nhbs Ltd,188.75,Materials and Supplies - Miscellaneous,Bat Detector for MF
03-May-19,Culture & Environment Services,Nixon Hire,20.80,Miscellaneous Stock  - Purchases,Extended hire x4 days portaloo hire - WATERTOWER PLAY AREA
29-May-19,Culture & Environment Services,Notcutts Garden Ce,70.00,Materials and Supplies - Miscellaneous,Various Plants - CORNHILL PLANTERS
01-May-19,Culture & Environment Services,Paperstone Limited,19.92,Stationery,Blue Card - Tribute Cards - Chapel/Flowers
22-May-19,Culture & Environment Services,Paypal,91.80,Clothing / Uniform & Laundry,3 x Chain saw helmets for Rangers
06-May-19,Culture & Environment Services,Paypal,116.86,Equipment / Furniture / Materials,PPE Safety Footwear x 4
13-May-19,Culture & Environment Services,Paypal,75.00,Equipment / Furniture / Materials,Cabling and connections new desk arrangements
30-May-19,Culture & Environment Services,Paypal,77.79,Equipment / Furniture / Materials,Grey Industrial Plastic Eurobox Storage Containers
23-May-19,Culture & Environment Services,Paypal,58.32,Fixtures & Fittings,security locks and fitting
08-May-19,Culture & Environment Services,Paypal,282.50,Materials and Supplies - Miscellaneous,HC Harrison Cameras - Bat Surveying
02-May-19,Culture & Environment Services,Peterborough Services,9.75,Miscellaneous Stock  - Purchases,Meals whilst working in Peterborough
22-May-19,Culture & Environment Services,Photo Me International Pl,5.00,Training Expenses,Id photo
22-May-19,Culture & Environment Services,Photo Me International Pl,5.00,Training Expenses,Parking staff photo ID
22-May-19,Culture & Environment Services,Photo Me International Pl,5.00,Training Expenses,Photo id for CCTV badge
09-May-19,Culture & Environment Services,Pitchcare Online,599.95,Equipment / Furniture / Materials,Line marker for Ransomes ground staff
14-May-19,Culture & Environment Services,Post Office Counter,5.50,Materials and Supplies - Miscellaneous,Recorded delivery for Wildlife HLS forms
13-May-19,Culture & Environment Services,Poundland Ltd 1719,2.50,Cleaning Supplies,Cleaning cloths
14-May-19,Culture & Environment Services,Poundland Ltd 1719,11.67,Cleaning Supplies,Cleaning Products for Shop Mo
13-May-19,Culture & Environment Services,Premier Farnell,40.50,Equipment / Furniture / Materials,LED Bulbs for the circle lounge
16-May-19,Culture & Environment Services,Premier Farnell,429.08,Fixtures & Fittings,Replacement working light above stage area at Regent
14-May-19,Culture & Environment Services,Pubshopcata,33.75,Equipment / Furniture / Materials,Lemon Tongs
01-May-19,Culture & Environment Services,Ram-Mount.Co.Uk,113.26,Direct Transport Costs,4x tablet holders
02-May-19,Culture & Environment Services,Ridgeons,11.14,Miscellaneous Stock  - Purchases,Timber - NEWBURY REC WETPOUR - Landscape Team
01-May-19,Culture & Environment Services,Rlss Uk,45.50,Training/Courses Running Costs,Membership renewal 
23-May-19,Culture & Environment Services,Rose Lane Car Park,5.00,Direct Transport Costs,cctv course parking
22-May-19,Culture & Environment Services,Rose Lane Car Park,5.00,Training Expenses,Parking cost for training course
27-May-19,Culture & Environment Services,Rs Components,27.08,Equipment / Furniture / Materials,Hard hats x 2
30-May-19,Culture & Environment Services,Ryman,24.99,Equipment / Furniture / Materials,Shredder for WF Gym
01-May-19,Culture & Environment Services,Ryman,29.14,Stationery,Card etc for wine lists
06-May-19,Culture & Environment Services,Ryman,7.31,Stationery,Date stamp
30-May-19,Culture & Environment Services,Sainsburys S/mkt,14.00,Equipment / Furniture / Materials,Hand Soap for FFD
16-May-19,Culture & Environment Services,Sainsburys S/mkt,2.08,Miscellaneous Stock  - Purchases,Water for staff - STUTTON - Landscape Team
01-May-19,Culture & Environment Services,Sainsburys S/mkts,7.00,Catering/Beverages,Lemons
13-May-19,Culture & Environment Services,Sainsburys S/mkts,7.00,Catering/Beverages,Lemons
20-May-19,Culture & Environment Services,Sainsburys S/mkts,5.00,Catering/Beverages,Lemons for bars
27-May-19,Culture & Environment Services,Sainsburys S/mkts,16.20,Catering/Beverages,Fruit for European Elections
03-May-19,Culture & Environment Services,Sainsburys S/mkts,20.00,Stationery,Reversing training DVD
02-May-19,Culture & Environment Services,Screens-R-Us-Limited,120.00,Direct Transport Costs,screen replacement for AV12 LFW
23-May-19,Culture & Environment Services,Screens-R-Us-Limited,120.00,Direct Transport Costs,Replacement W/S for AV10 KXG
30-May-19,Culture & Environment Services,Screens-R-Us-Limited,174.00,Direct Transport Costs,Windscreen repairs
30-May-19,Culture & Environment Services,Screens-R-Us-Limited,252.00,Direct Transport Costs,Windscreen repairs
30-May-19,Culture & Environment Services,Screens-R-Us-Limited,42.00,Direct Transport Costs,Windscreen repairs
15-May-19,Culture & Environment Services,Screwfix Dir. Ltd,16.91,Materials and Supplies - Miscellaneous,Pack of 100 screws - Holywells Hub
01-May-19,Culture & Environment Services,Screwfix Dir. Ltd,6.66,Miscellaneous Stock  - Purchases,Trowel - NEWBURY REC - Landscape Team
02-May-19,Culture & Environment Services,Screwfix Dir. Ltd,1.91,Miscellaneous Stock  - Purchases,PVC gauntlet - NEWBURY REC WETPOUR - Landscape Team
21-May-19,Culture & Environment Services,Screwfix Dir. Ltd,10.47,Miscellaneous Stock  - Purchases,PVC Gauntlet. trowel - NEWBURY REC - Landscape Team
27-May-19,Culture & Environment Services,Screwfix Dir. Ltd,23.32,Miscellaneous Stock  - Purchases,Drill bits & Trowel - Landscape Team
09-May-19,Culture & Environment Services,Screwfix Direct,191.97,Equipment / Furniture / Materials,repair parts
24-May-19,Culture & Environment Services,Screwfix Direct,50.78,Parks Vehicle Costs,Mats and seat covers EK19 YKM
24-May-19,Culture & Environment Services,Screwfix Direct Lt,7.67,Materials and Supplies - Miscellaneous,Tap for Pressure washer - Christchurch Hub
13-May-19,Culture & Environment Services,Screwfix Direct Lt,12.49,Miscellaneous Stock  - Purchases,Padlocks - WHITTON REC GOALS - Landscape Team
02-May-19,Culture & Environment Services,Screwfix Ipswich Ransomes,18.12,Equipment / Furniture / Materials,Screws & bolts - PA Inspector
02-May-19,Culture & Environment Services,Screwfix Peterboro,40.16,Miscellaneous Stock  - Purchases,Black cable ties - Landscape Team
31-May-19,Culture & Environment Services,Shell Needham Mark,65.04,Direct Transport Costs,Fuel - Christchurch Hub
14-May-19,Culture & Environment Services,Shell Ranelagh 390,49.68,Parks Vehicle Costs,Fuel for mowers - Christchurch Hub
13-May-19,Culture & Environment Services,Signs For You Ltd,125.16,Stationery,Magnets for Cleansing board
31-May-19,Culture & Environment Services,Signs For You Ltd,46.88,Stationery,"Handrail stickers, labels printed for ML"
13-May-19,Culture & Environment Services,Simply Sound And Lighting,19.16,Equipment / Furniture / Materials,x1 portable hand mic for events and centre use
31-May-19,Culture & Environment Services,Sjasuplies,138.54,Materials and Supplies - Miscellaneous,First aid equipment for HEARS.
14-May-19,Culture & Environment Services,Sp * Prosafedirect.Com,62.45,Equipment / Furniture / Materials,Ear plugs corn exchange 
17-May-19,Culture & Environment Services,Sp * Simplyscuba,649.97,Equipment / Furniture / Materials,New Jet Skis for summer holiday programme
23-May-19,Culture & Environment Services,Sportsdirect.Com,70.82,Equipment / Furniture / Materials,x12 badminton rackets for hire use
20-May-19,Culture & Environment Services,Sq *ley Plant Limited,833.33,Miscellaneous Stock  - Purchases,Type 1 - ROYAL GREEN LOWESTOFT - Landscape Team
20-May-19,Culture & Environment Services,Sq *ley Plant Limited,833.33,Miscellaneous Stock  - Purchases,Type 1 - ROYAL GREEN LOWESTOFT - Landscape Team
21-May-19,Culture & Environment Services,Sq *ley Plant Limited,25.00,Miscellaneous Stock  - Purchases,Ballast - ROYAL GREEN LOWESTOFT - Landscape Team
21-May-19,Culture & Environment Services,Sq *ley Plant Limited,25.00,Miscellaneous Stock  - Purchases,Ballast - ROYAL GREEN LOWESTOFT - Landscape Team
21-May-19,Culture & Environment Services,Sq *ley Plant Limited,32.00,Miscellaneous Stock  - Purchases,Ballast - ROYAL GREEN LOWESTOFT - Landscape Team
23-May-19,Culture & Environment Services,Sq *ley Plant Limited,916.67,Miscellaneous Stock  - Purchases,Removal of soil from site - ROYAL GREEN LOWESTOFT
02-May-19,Culture & Environment Services,Sterling Bolt And Nut,6.46,Miscellaneous Stock  - Purchases,Nuts & Bolts - Landscape Team
03-May-19,Culture & Environment Services,Sterling Bolt And Nut,5.22,Miscellaneous Stock  - Purchases,Black Cable ties - Landscape Team
22-May-19,Culture & Environment Services,Suffolk County Council,9.17,Holding A/C - General Use,Death Certificate for P/H
13-May-19,Culture & Environment Services,Suffolk County Council,41.67,Miscellaneous Expenses,Road closure application fee
08-May-19,Culture & Environment Services,Suffolk County Council,58.33,Non Contracted_Professional Services,MEWP Licence - Whersted Road
20-May-19,Culture & Environment Services,Swanns Nursery,16.62,Materials and Supplies - Miscellaneous,Various plants - Christchurch Hub
13-May-19,Culture & Environment Services,Swatch Group UK Ltd Dc,"1,480.00",Equipment / Furniture / Materials,Swiss Timing Gala Laptops for quantum system
13-May-19,Culture & Environment Services,T J Morris Ltd,6.63,Miscellaneous Stock  - Purchases,Water for staff - Landscape Team
03-May-19,Culture & Environment Services,Tesco Store 3240,87.08,Catering/Beverages,Food for Elections Press 51093 & Whisky for bars
03-May-19,Culture & Environment Services,Tesco Store 3240,31.57,Catering/Beverages,Food for Elections Press 51093 & Whisky for bars
21-May-19,Culture & Environment Services,Tesco Store 3240,95.00,Catering/Beverages,"Food for DM Event 51116, gin for regent bars"
21-May-19,Culture & Environment Services,Tesco Store 3240,3.33,Catering/Beverages,"Food for DM Event 51116, gin for regent bars"
21-May-19,Culture & Environment Services,Tesco Store 3240,117.37,Catering/Beverages,"Food for DM Event 51116, gin for regent bars"
22-May-19,Culture & Environment Services,Tesco Store 3240,40.00,Catering/Beverages,Rum for bars
16-May-19,Culture & Environment Services,Tesco Stores 5603,4.79,Materials and Supplies - Miscellaneous,Purchase of tea coffee milk for training event in Orangery
01-May-19,Culture & Environment Services,The Post Office,10.95,Equipment / Furniture / Materials,CPC Return lamps
01-May-19,Culture & Environment Services,The Post Office,22.83,Postage Costs,return of artwork to artists
02-May-19,Culture & Environment Services,The Ramp People,117.00,Materials and Supplies - Miscellaneous,Ramps
06-May-19,Culture & Environment Services,The Range,10.82,Equipment / Furniture / Materials,Hose for May Day event at Alexandra Park
10-May-19,Culture & Environment Services,The Range,3.32,Equipment / Furniture / Materials,x3 tea towels for kitchen use
15-May-19,Culture & Environment Services,The Range,9.97,Equipment / Furniture / Materials,x3 various size plastic storage containers for equipment
16-May-19,Culture & Environment Services,The Range,24.99,Equipment / Furniture / Materials,Multi Tools x 2
29-May-19,Culture & Environment Services,The Range,24.21,Equipment / Furniture / Materials,spray paint for planters
29-May-19,Culture & Environment Services,The Range,55.37,Equipment / Furniture / Materials,spray paint for planters
24-May-19,Culture & Environment Services,The Range,8.32,Miscellaneous Stock  - Purchases,Compact Scales - Landscape Team
17-May-19,Culture & Environment Services,The Sandcastle Guest H,525.00,Miscellaneous Stock  - Purchases,Accommodation - ROYAL GREEN LOWESTOFT
16-May-19,Culture & Environment Services,The Windscreen Co,138.00,Direct Transport Costs,insurance claim 19191300170 repairs to LJ15XFO
02-May-19,Culture & Environment Services,Timpson,9.12,Equipment / Furniture / Materials,Porta cabin spare key
17-May-19,Culture & Environment Services,Timpson Ltd,21.25,Fixtures & Fittings,Replacement Keys
22-May-19,Culture & Environment Services,Toms Tree Ties,39.84,Miscellaneous Stock  - Purchases,rabbit guards for client trees
10-May-19,Culture & Environment Services,Toolstation Ltd,21.00,Materials and Supplies - Miscellaneous,keys for Cleansing job - 47 Elmcroft Road
31-May-19,Culture & Environment Services,Toolstation Ltd,22.16,Miscellaneous Stock  - Purchases,Safety googles/saw/broom - Landscape Team
23-May-19,Culture & Environment Services,Town & Tea,74.25,Catering/Beverages,April Tab
23-May-19,Culture & Environment Services,Town & Tea,76.29,Catering/Beverages,March Tab
29-May-19,Culture & Environment Services,Trainline,98.40,Use Of Public Transport,Travel for course for election staff
29-May-19,Culture & Environment Services,Trainline,65.45,Use Of Public Transport,Travel to course for election staff
08-May-19,Culture & Environment Services,Turner Tool Hire,"1,022.38",Equipment Hire,MEWP Hire - Whersted Rd
17-May-19,Culture & Environment Services,Turner Tool Hire,"1,478.16",Equipment Hire,MEWP Hire Invoice 210389
31-May-19,Culture & Environment Services,Turner Tool Hire,544.82,Equipment Hire,MEWP Hire Invoice 210528
30-May-19,Culture & Environment Services,Value Products Ltd,26.00,Equipment / Furniture / Materials,Fire action plan signs
29-May-19,Culture & Environment Services,Victoria Nurseries,145.00,Equipment / Furniture / Materials,compost for planters
02-May-19,Culture & Environment Services,Victoria Nurseries,8.75,Materials and Supplies - Miscellaneous,replacement budlhia
03-May-19,Culture & Environment Services,Victoria Nurseries,49.12,Materials and Supplies - Miscellaneous,Roses for Reydon House
29-May-19,Culture & Environment Services,Victoria Nurseries,81.67,Materials and Supplies - Miscellaneous,Various Plants - CORNHILL PLANTERS
29-May-19,Culture & Environment Services,Victoria Nurseries,100.00,Materials and Supplies - Miscellaneous,Various Plants - CORNHILL PLANTERS
31-May-19,Culture & Environment Services,Victoria Nurseries,43.07,Materials and Supplies - Miscellaneous,Various Plants - Christchurch Hub
16-May-19,Culture & Environment Services,Viking Stage Lighting,95.00,Materials and Supplies - Miscellaneous,Purchase of fluid for Haze Machine at the Regent
17-May-19,Culture & Environment Services,Waitrose Ltd,1.15,Catering/Beverages,Milk for Conferences
08-May-19,Culture & Environment Services,Waitrose Ltd,0.96,Subsistence & Conference/Seminar / Event Expenses,Milk for Shop mo
14-May-19,Culture & Environment Services,Waitrose Ltd,0.96,Subsistence & Conference/Seminar / Event Expenses,Milk for Shop mo
13-May-19,Culture & Environment Services,Wayfair #2966774414,313.32,Equipment / Furniture / Materials,2 x replacement loungers for the health suite
13-May-19,Culture & Environment Services,Wayfair #2966775204,156.66,Equipment / Furniture / Materials,Replacement lounger for health suite
01-May-19,Culture & Environment Services,Welcome Break,19.87,Miscellaneous Stock  - Purchases,Meals whilst working in Peterborough
02-May-19,Culture & Environment Services,Welcome Break,39.75,Miscellaneous Stock  - Purchases,Meals whilst working ion Peterborough
06-May-19,Culture & Environment Services,Welcome Break,6.62,Miscellaneous Stock  - Purchases,B'fast for staff - WATERTOWER PA - Landscape Team
03-May-19,Culture & Environment Services,Wickes Ipswich,20.83,Equipment / Furniture / Materials,Flat drill bits - PA Inspector
31-May-19,Culture & Environment Services,Wickes Ipswich,14.31,Equipment / Furniture / Materials,Treated Sawn - Cemeteries
15-May-19,Culture & Environment Services,Wickes Ipswich,19.08,Materials and Supplies - Miscellaneous,Treated wood 5pk - Holywells Hub
16-May-19,Culture & Environment Services,Wickes Ipswich,24.08,Miscellaneous Stock  - Purchases,"Sandpaper, wd40 straw, multirasp - Landscape Team"
16-May-19,Culture & Environment Services,Wickes Ipswich,10.00,Miscellaneous Stock  - Purchases,Side Cutter - Landscape Team
24-May-19,Culture & Environment Services,Wickes Ipswich,0.83,Miscellaneous Stock  - Purchases,Plastic Bucket - Landscape Team
21-May-19,Culture & Environment Services,Wilco Motor Spares Ltd,9.99,Equipment / Furniture / Materials,De-ironised water for sweepers
31-May-19,Culture & Environment Services,Wilko Retail Limit,3.37,Cleaning Supplies,washing up liquid and window cleaning blades
16-May-19,Culture & Environment Services,Wilko Retail Limit,5.87,Equipment / Furniture / Materials,water testing jugs and aerial connectors
15-May-19,Culture & Environment Services,Wilko Retail Limit,3.21,Materials and Supplies - Miscellaneous,Cleaning products - Christchurch Hub
29-May-19,Culture & Environment Services,Wilko Retail Limit,3.00,Materials and Supplies - Miscellaneous,watering can to water planters
30-May-19,Culture & Environment Services,Wm Morrisons Store,3.12,Miscellaneous Stock  - Purchases,Water for staff- ROYAL GREEN LOWESTOFT
22-May-19,Culture & Environment Services,Www.Alcosense.Co.Uk,144.14,Equipment / Furniture / Materials,Breathalyser testing kit
29-May-19,Culture & Environment Services,Www.Ausphysio.Com,147.46,Equipment / Furniture / Materials,Pilates bands for Pilates+
08-May-19,Culture & Environment Services,Www.Banneruk.Com,40.56,Stationery,stationary
21-May-19,Culture & Environment Services,Www.Banneruk.Com,10.37,Stationery,stationary
22-May-19,Culture & Environment Services,Www.Bats.Org.Uk,154.58,Training Expenses,Bat training 
15-May-19,Culture & Environment Services,Www.Carparts4less.,7.20,Materials and Supplies - Miscellaneous,Car Brush for van floors.
16-May-19,Culture & Environment Services,Www.Cleanroomsuppliesltd,243.40,Cleaning Supplies,Blue Shoe Covers
30-May-19,Culture & Environment Services,Www.Cookswastekare,218.00,Miscellaneous Stock  - Purchases,Skip for rubber surface removal at Jubilee Park
02-May-19,Culture & Environment Services,Www.Eliteindustrial.Co,35.31,Materials and Supplies - Miscellaneous,Purchase of hi-vis jackets for FoMP Vols
13-May-19,Culture & Environment Services,Www.Equip4work.Co.Uk,189.00,Materials and Supplies - Miscellaneous,3 x Lockers for mess room
30-May-19,Culture & Environment Services,Www.Firstfence.Co.Uk,"2,727.80",Miscellaneous Stock  - Purchases,security fencing for play area builds
31-May-19,Culture & Environment Services,Www.Firstfence.Co.Uk,809.96,Miscellaneous Stock  - Purchases,security fencing for play area builds
09-May-19,Culture & Environment Services,Www.Fta.Co.Uk,94.74,Stationery,Taco Graph paper
22-May-19,Culture & Environment Services,Www.Landmarktrading.Co.U,99.29,Materials and Supplies - Miscellaneous,"Eye wash, paper towels, market paint."
15-May-19,Culture & Environment Services,Www.Lsc-Uk.Com,53.93,Materials and Supplies - Miscellaneous,2x Purring Saws
20-May-19,Culture & Environment Services,Www.Servochem.Uk.Com,191.00,Cleaning Supplies,Deep clean chemicals for crown pools flooring
10-May-19,Culture & Environment Services,Www.Technogym.Com,402.24,Equipment / Furniture / Materials,x1 roller rower replaced & installed & wave machine repair
21-May-19,Culture & Environment Services,Www.Technogym.Com,-185.63,Equipment / Furniture / Materials,refund for repair to treadmill and rower on contract
13-May-19,Development,Amzn Mktp Uk,6.27,Stationery,6 rolls of scotch tape (Enforcement notices)
14-May-19,Development,Amznmktplace,152.33,Capital Expenditure,Noticeboards for new East Villa
17-May-19,Development,Amznmktplace Amazon.Co.Uk,7.48,Capital Expenditure,Table tennis accessories for new East Villa
17-May-19,Development,Amznmktplace Amazon.Co.Uk,116.66,Capital Expenditure,Table tennis table for new East Villa
20-May-19,Development,Amznmktplace Amazon.Co.Uk,2.75,Capital Expenditure,Table tennis accessories for east villa
03-May-19,Development,Asda Stores 4278,3.33,Election Expenses,Goods for elections
15-May-19,Development,Battery Station,11.04,Stationery,batteries
21-May-19,Development,Cpw Locksmiths And Securi,87.50,Capital Expenditure,change of lock
27-May-19,Development,Dyofix,80.00,Premises Costs - Miscellaneous,Blue powder for CCP round pond
13-May-19,Development,Eb *creative Centres S,40.00,Specific Campaigns / Projects expenditure,attendance at creative conference. 
02-May-19,Development,Geodesys,88.33,Capital Expenditure,Hawke Rd
10-May-19,Development,Geodesys,81.61,Capital Expenditure,Redwing cl
24-May-19,Development,Geodesys,89.83,Capital Expenditure,Bishopsgarth
24-May-19,Development,Geodesys,89.83,Capital Expenditure,Stonelodge la
23-May-19,Development,Haymarket Media Group,"2,125.00",Publications - Purchase,DCP Online 3/5/19 - 2/5/20
01-May-19,Development,Historic Scotland,18.00,Stationery,Britain from Above digital image (Archives)
10-May-19,Development,J P Chick & Partne,95.00,Non Contracted_Professional Services,Calculation check 19/00084/MUL
01-May-19,Development,Nochex.*utilitysearch,100.17,Capital Expenditure,Hawke Rd
09-May-19,Development,Nochex.*utilitysearch,100.17,Capital Expenditure,Redwing cl
02-May-19,Development,Paypal,"1,160.00",Training Expenses,RTPI - 5 Training Courses
16-May-19,Development,Rics Events London,"1,098.00",Training Expenses,RICS Proj Management Crse 
17-May-19,Development,Vue*ncs Citb Hs&e Test,17.50,Non Contracted_Professional Services,CITB test 
09-May-19,Development,Www.Banneruk.Com,25.32,Stationery,flip charts
30-May-19,Development,Www.Banneruk.Com,82.20,Stationery,Laminating pouches
14-May-19,Development,Www.Displaydevelopment,182.70,Capital Expenditure,Leaflet holders and small notice frames for East Villa
14-May-19,Development,Www.Jaydeeliving.Co.Uk,553.80,Capital Expenditure,Bins for New east Villa
20-May-19,Development,Www.Johnsonvalves.Co.U,122.46,Capital Expenditure,Pulse output meter for Sproughton site
21-May-19,Development,Www.Rainbowsafetey.Co.Uk,12.92,GF_Contract Repair & Maintenance,Asbestos warning stickers
01-May-19,Development,Www.Sackers .Co.Uk,214.20,Removal/Emptying of Waste,waste removal
31-May-19,Development,Www.Sackers .Co.Uk,300.00,Removal/Emptying of Waste,bins
31-May-19,Development,Www.Westminster-Briefi,-250.75,Training Expenses,Refund of cancelled training fee RC
01-May-19,Finance & Revenues,Amazon.Co.Uk,14.19,Telecommunication Costs - Business Phones,Skype USB handset
10-May-19,Finance & Revenues,Amzn Mktp Uk,39.07,Telecommunication Costs - Mobiles,Waterproof cases for Smartphones
20-May-19,Finance & Revenues,Amzn Mktp Uk,8.90,Telecommunication Costs - Mobiles,Protective case for Smartphone
20-May-19,Finance & Revenues,Amzn Mktp Uk,8.90,Telecommunication Costs - Mobiles,Protective case for Smartphone
22-May-19,Finance & Revenues,Amzn Mktp Uk,8.90,Telecommunication Costs - Mobiles,Protective case for Smartphone
23-May-19,Finance & Revenues,Amzn Mktp Uk,8.90,Telecommunication Costs - Mobiles,Protective case for Smartphone
24-May-19,Finance & Revenues,Amzn Mktp Uk,8.90,Telecommunication Costs - Mobiles,Protective case for Smartphone
30-May-19,Finance & Revenues,Amzn Mktp Uk,7.03,Telecommunication Costs - Mobiles,Protective cases for Smartphone
30-May-19,Finance & Revenues,Amzn Mktp Uk,7.02,Telecommunication Costs - Mobiles,Protective cases for Smartphone
31-May-19,Finance & Revenues,Amzn Mktp Uk,14.06,Telecommunication Costs - Mobiles,Protective case for Smartphone
09-May-19,Finance & Revenues,Amznmktplace,4.15,Telecommunication Costs - Mobiles,Protective Case for Smartphone
10-May-19,Finance & Revenues,Argos Ltd,7.07,Equipment / Furniture / Materials,SD card for camera
13-May-19,Finance & Revenues,Bromleynet,"1,329.96",Capital Expenditure,Firewall for East Villa site
27-May-19,Finance & Revenues,Cbt Nuggets,48.03,Training Expenses,Training Courses
14-May-19,Finance & Revenues,Comms Express Ltd,444.15,Capital Expenditure,Wi-Fi Access points for East Villa
20-May-19,Finance & Revenues,Digicert Inc,310.00,Computer Software - Purchase,SSL certificate for Skype
20-May-19,Finance & Revenues,Digicert Inc,310.00,Computer Software - Purchase,SSL certificate for Skype
20-May-19,Finance & Revenues,Digicert Inc,310.00,Computer Software - Purchase,SSL certificate for Skype
20-May-19,Finance & Revenues,Digicert Inc,310.00,Computer Software - Purchase,SSL certificate for Skype
20-May-19,Finance & Revenues,Dri Nuance,139.99,Computer Software - Purchase,Dragon Naturally Speaking Software
24-May-19,Finance & Revenues,Kenable,38.50,Computer Equipment - Purchase,Agile Kit - Cables
14-May-19,Finance & Revenues,Paypal,62.92,Computer Consumables and other Minor IT costs,DNS service renewal
23-May-19,Finance & Revenues,Paypal,114.90,Web Service costs,Domain registrations
10-May-19,Finance & Revenues,"Probrand Ltd.,",747.18,Capital Expenditure,"5 x 19"" Monitors - Stock I.T"
06-May-19,Finance & Revenues,Service Fees - Fraedom Pty Ltd,383.15,Computer Software - Maintenance,Fraedom Card usage Fees 1/4/19 to 30/4/19
16-May-19,Finance & Revenues,Southend County,490.00,Legal Services & Fees,Council Tax committal summons
17-May-19,Finance & Revenues,Southend County,927.00,Legal Services & Fees,Council Tax and NDR summons
23-May-19,Finance & Revenues,Southend County,980.00,Legal Services & Fees,Committal summons
24-May-19,Finance & Revenues,Southend County,584.50,Legal Services & Fees,Council Tax summons
23-May-19,Finance & Revenues,Www.Awd-It.Co.Uk,679.12,Computer Equipment - Purchase,Custom AutoCAD PC
02-May-19,Finance & Revenues,Www.Ejobber.Co.Uk,"1,355.29",Computer Software - Purchase,Scanning software - Elections
29-May-19,Finance & Revenues,Www.Paessler.Com,587.17,Computer Software - Purchase,PRTG server monitoring software
31-May-19,Finance & Revenues,Www.Pro2col.Com,142.20,Computer Equipment - Purchase,File transfer software
30-May-19,Housing & Community Services,Aldi 776 104,21.07,Specific Campaigns / Projects expenditure,Crucial Crew items
30-May-19,Housing & Community Services,Aldi 776 104,3.92,Specific Campaigns / Projects expenditure,Crucial Crew items
03-May-19,Housing & Community Services,Amazon.Co.Uk,19.15,Computer Consumables and other Minor IT costs,Wireless mouse 
13-May-19,Housing & Community Services,Amzn Mktp Uk,8.79,Computer Equipment - Purchase,Keyboard/mouse sets x 3
30-May-19,Housing & Community Services,Amzn Mktp Uk,23.48,Telecommunication Costs - Mobiles,Phone Holders
13-May-19,Housing & Community Services,Amznmktplace,50.97,Computer Equipment - Purchase,Keyboard/mouse sets x 3
13-May-19,Housing & Community Services,Amznmktplace,17.98,Computer Equipment - Purchase,USB Ports x 2
30-May-19,Housing & Community Services,Amznmktplace,28.95,Computer Equipment - Purchase,Charger Cables
31-May-19,Housing & Community Services,Amznmktplace,35.48,Computer Equipment - Purchase,Keyboard/Mouse Sets
22-May-19,Housing & Community Services,Amznmktplace,3.65,Equipment / Furniture / Materials,Ant bait for monitor
22-May-19,Housing & Community Services,Amznmktplace,3.39,Materials and Supplies - Miscellaneous,3443352 4.8mmx30mm rivets x 50
30-May-19,Housing & Community Services,Amznmktplace,2.95,Telecommunication Costs - Mobiles,Screen |Protectors
02-May-19,Housing & Community Services,Amznmktplace Amazon.Co.Uk,18.32,Equipment / Furniture / Materials,2 tablet cases for ILP 
22-May-19,Housing & Community Services,Amznmktplace Amazon.Co.Uk,36.34,Equipment / Furniture / Materials,Items for Air Quality event
21-May-19,Housing & Community Services,Amznmktplace Amazon.Co.Uk,61.14,Specific Campaigns / Projects expenditure,Megaphone for Crucial Crew
30-May-19,Housing & Community Services,B&m Retail Ltd,18.17,Specific Campaigns / Projects expenditure,Crucial Crew items
14-May-19,Housing & Community Services,Bisley Direct,23.98,Equipment / Furniture / Materials,Keys for cabinet in union room
01-May-19,Housing & Community Services,Bloomsbury Publish,87.95,Equipment / Furniture / Materials,ASB book for ASB team
08-May-19,Housing & Community Services,Bloomsbury Publish,-1.00,Equipment / Furniture / Materials,Refund for 1 cost put on procurement card for purchase
02-May-19,Housing & Community Services,British Standards,255.95,Equipment / Furniture / Materials,ACOP Building Design for Disabled Adaptation Works
21-May-19,Housing & Community Services,Bunzl,121.81,Cleaning Supplies,cleaning supplies
09-May-19,Housing & Community Services,Chartered Institute Of En,140.00,Training Expenses,Training Course
20-May-19,Housing & Community Services,Chartered Institute Of En,140.00,Training Expenses,Food Safety & Standards Conference Event 
22-May-19,Housing & Community Services,Chartered Institute Of En,195.00,Training Expenses,Training course 
06-May-19,Housing & Community Services,Cpw Locksmiths And Securi,80.00,HRA Special Repairs & Maintenance,Holywells faulty Conservatory lock
16-May-19,Housing & Community Services,Cpw Locksmiths And Securi,80.00,HRA Special Repairs & Maintenance,provide lock to scheme Stratford COurt
23-May-19,Housing & Community Services,Cpw Locksmiths And Securi,80.00,HRA Special Repairs & Maintenance,provide lock to scheme Stratford Court
24-May-19,Housing & Community Services,Fall Guard UK Limited,13.98,Materials and Supplies - Miscellaneous,03464719. Metal chain with sleeving
24-May-19,Housing & Community Services,Greater Anglia T/o,175.80,Use Of Public Transport,Train fare 
03-May-19,Housing & Community Services,Im-Press Promotion,176.15,Clothing / Uniform & Laundry,Uniform
14-May-19,Housing & Community Services,Inst Of Lic,450.00,Subscriptions - Service Related,Subscription Renewal
10-May-19,Housing & Community Services,J2 Efax Plus Service,11.00,Miscellaneous Expenses,Monthly fee for secure fax system (used for food parcels)
06-May-19,Housing & Community Services,Pentahotel Ipswich,59.00,Services for Clients,Hotel accommodation for client (did not turn up)
08-May-19,Housing & Community Services,Possessionclaim.Go,325.00,Legal Services & Fees,possession claim on line
08-May-19,Housing & Community Services,Possessionclaim.Go,325.00,Legal Services & Fees,possession claim on line
08-May-19,Housing & Community Services,Possessionclaim.Go,325.00,Legal Services & Fees,possession claim on line
08-May-19,Housing & Community Services,Possessionclaim.Go,325.00,Legal Services & Fees,possession claim on line
09-May-19,Housing & Community Services,Possessionclaim.Go,325.00,Legal Services & Fees,possession claim on line
22-May-19,Housing & Community Services,Possessionclaim.Go,325.00,Legal Services & Fees,possession claim on line
23-May-19,Housing & Community Services,Possessionclaim.Go,325.00,Legal Services & Fees,possession claim line
23-May-19,Housing & Community Services,Possessionclaim.Go,325.00,Legal Services & Fees,possession claim on line
06-May-19,Housing & Community Services,Post Office Counter,1.88,Stationery,recorded delivery T V Licensing renewal
13-May-19,Housing & Community Services,Post Office Counter,1.88,Stationery,Post office recorded delivery CT TV licence
27-May-19,Housing & Community Services,Ryder-Davies & Partners,253.96,Non Contracted_Professional Services,Dog Breeding Inspection
16-May-19,Housing & Community Services,Sainsburys S/mkts,21.20,Specific Campaigns / Projects expenditure,Rough sleeping count refreshments.
21-May-19,Housing & Community Services,Screwfix Direct,49.98,Equipment / Furniture / Materials,2x 12v Bosch Batteries 
06-May-19,Housing & Community Services,Southend County,40.00,Legal Services & Fees,gas warrant
29-May-19,Housing & Community Services,Southend County,226.00,Legal Services & Fees,Magistrates Fee on behalf of Tenancy Enforcement
21-May-19,Housing & Community Services,Suffolk County Council,455.00,Equipment / Furniture / Materials,S50 licence
21-May-19,Housing & Community Services,Tesco Pfs 3724,19.50,Equipment / Furniture / Materials,Unleaded Fuel for small plant items in hire shop 19 ltrs
22-May-19,Housing & Community Services,Tetra Scene Of Crime,37.00,Equipment / Furniture / Materials,100 medium evidence bags
15-May-19,Housing & Community Services,The Diy Shop Ltd,7.00,Materials and Supplies - Miscellaneous,Hinge repair kit 3439690
31-May-19,Housing & Community Services,Trainline,107.70,Use Of Public Transport,Train tickets 
24-May-19,Housing & Community Services,Www.Argos.Co.Uk,86.62,Miscellaneous Expenses,as requested by KB 2 circular linen lines
14-May-19,Housing & Community Services,Www.Banneruk.Com,19.31,Stationery,Stationery for CCC / CSC
14-May-19,Housing & Community Services,Www.Banneruk.Com,54.36,Stationery,Stationery for CCC / CSC
20-May-19,Housing & Community Services,Www.Banneruk.Com,134.57,Stationery,Stationery
27-May-19,Housing & Community Services,Www.Siteking.Co.Uk,21.64,Clothing / Uniform & Laundry,Trousers & Belt for Temporary Inspector
01-May-19,People & Governance,Amazon.Co.Uk,20.40,Miscellaneous Stock  - Purchases,White binding wire for print room
02-May-19,People & Governance,Amazon.Co.Uk,19.54,Miscellaneous Stock  - Purchases,white binding wire for print room
15-May-19,People & Governance,Amazon.Co.Uk,46.17,Miscellaneous Stock  - Purchases,Pink Envelopes for Elections printing
23-May-19,People & Governance,Amazon.Co.Uk,23.97,Miscellaneous Stock  - Purchases,PVC Binding Covers for print room
24-May-19,People & Governance,Amazon.Co.Uk,24.81,Miscellaneous Stock  - Purchases,Coloured Paper for Elections
14-May-19,People & Governance,Amazon.Co.Uk,418.00,Specific Campaigns / Projects expenditure,Retirement Gift Card 
23-May-19,People & Governance,Amzn Mktp Uk,11.54,Miscellaneous Stock  - Purchases,Plastic Business Card boxes for print room
02-May-19,People & Governance,Amznmktplace,31.66,Miscellaneous Stock  - Purchases,A1 black foam board for print room
20-May-19,People & Governance,Amznmktplace Amazon.Co.Uk,22.49,Equipment / Furniture / Materials,Electronic signature pad
23-May-19,People & Governance,Debenhams.Com,250.00,Specific Campaigns / Projects expenditure,Retirement Giftcard 
22-May-19,People & Governance,Dri Nuance,105.25,Computer Equipment - Purchase,Headset 
23-May-19,People & Governance,Facebk *5zpjcle8j2,2.67,Advertising/Publicity,Social Media Advertising
23-May-19,People & Governance,Facebk *5zpjcle8j2,11.91,Advertising/Publicity,Social Media Advertising
23-May-19,People & Governance,Facebk *5zpjcle8j2,28.07,Advertising/Publicity,Social Media Advertising
23-May-19,People & Governance,Facebk *5zpjcle8j2,440.69,Advertising/Publicity,Social Media Advertising
08-May-19,People & Governance,Facebk *7r395le8j2,415.71,Advertising/Publicity,Social Media Advertising
08-May-19,People & Governance,Facebk *7r395le8j2,10.67,Advertising/Publicity,Social Media Advertising
08-May-19,People & Governance,Facebk *7r395le8j2,7.95,Advertising/Publicity,Social Media Advertising
01-May-19,People & Governance,Facebk *d6cdglj8j2,33.14,Advertising/Publicity,Social Media Advertising
01-May-19,People & Governance,Facebk *d6cdglj8j2,20.71,Advertising/Publicity,Social Media Advertising
01-May-19,People & Governance,Facebk *d6cdglj8j2,63.73,Advertising/Publicity,Social Media Advertising
01-May-19,People & Governance,Facebk *d6cdglj8j2,38.10,Advertising/Publicity,Social Media Advertising
01-May-19,People & Governance,Facebk *d6cdglj8j2,327.65,Advertising/Publicity,Social Media Advertising
16-May-19,People & Governance,Facebk *f9cktlw7j2,458.45,Advertising/Publicity,Social Media Advertising
16-May-19,People & Governance,Facebk *f9cktlw7j2,24.88,Advertising/Publicity,Social Media Advertising
06-May-19,People & Governance,Facebk *q8bydla8j2,441.16,Advertising/Publicity,Social Media Advertising
06-May-19,People & Governance,Facebk *q8bydla8j2,12.62,Advertising/Publicity,Social Media Advertising
06-May-19,People & Governance,Facebk *q8bydla8j2,20.62,Advertising/Publicity,Social Media Advertising
06-May-19,People & Governance,Facebk *q8bydla8j2,8.93,Advertising/Publicity,Social Media Advertising
15-May-19,People & Governance,Facebk 9u7exlwkw2,256.80,Advertising/Publicity,Facebook Ads - Crafted Classique
03-May-19,People & Governance,Fsprg.Uk,9.97,Advertising/Publicity,Cinderella Early Bird Countdown Clock
01-May-19,People & Governance,Google,7.08,Advertising/Publicity,Kiss & Tell website PPC campaign
13-May-19,People & Governance,Google,19.22,Advertising/Publicity,Google Ads - Venues Ipswich May
17-May-19,People & Governance,Greater Anglia Trains,65.90,Use Of Public Transport,Train travel to IT conference in London
24-May-19,People & Governance,Helloprint,110.25,Printing Costs,External Banner Printing
09-May-19,People & Governance,Johnsons,30.48,Mayoral Related Expenditure,Tags on new mayor's jackets
21-May-19,People & Governance,Maharani,366.67,Mayoral Related Expenditure,Mayor's Thank You Curry 12 May 2019
13-May-19,People & Governance,Mailchimp,420.12,Subscriptions - Service Related,Email Marketing
27-May-19,People & Governance,Mailchimp,199.18,Subscriptions - Service Related,MailChimp
14-May-19,People & Governance,Makro Self Service Ipswic,295.05,Miscellaneous Functions & Events,wine for Mayors making
08-May-19,People & Governance,Marks&spencer Plc,59.45,Miscellaneous Functions & Events,sandwiches/cake Law Centre volunteers event
09-May-19,People & Governance,Marks&spencer Plc,28.64,Miscellaneous Functions & Events,"cake/sandwiches, voucher"
13-May-19,People & Governance,Marks&spencer Plc,44.80,Miscellaneous Functions & Events,cake/sandwiches for event
10-May-19,People & Governance,Parcelforce,20.11,Stationery,SAR Parcel 
16-May-19,People & Governance,Sainsburys S/mkt,59.79,Miscellaneous Functions & Events,juice/Beer for Mayor Making
21-May-19,People & Governance,Shell Ranelagh 390,38.25,Direct Transport Costs,fuel
06-May-19,People & Governance,Signs For You Ltd,37.55,Advertising/Publicity,Signs 4U park banner 
17-May-19,People & Governance,Snapfish Uk,21.23,Advertising/Publicity,Mayors Photo Album ordered by Marketing
23-May-19,People & Governance,Sp * Mens Health Foru,69.95,Training Expenses,order for IBC Training courses
17-May-19,People & Governance,"Sprout Social, Inc",805.17,Subscriptions - Service Related,Social Media Management
01-May-19,People & Governance,Waitrose Ltd,2.24,Mayoral Related Expenditure,mayoral reception
08-May-19,People & Governance,Waitrose Ltd,1.99,Miscellaneous Functions & Events,milk/biscuits. Law Centre volunteers
08-May-19,People & Governance,Waitrose Ltd,2.65,Miscellaneous Functions & Events,tea bags for parlour events
13-May-19,People & Governance,Waitrose Ltd,6.67,Miscellaneous Functions & Events,Coffee for Parlour
14-May-19,People & Governance,Waitrose Ltd,3.85,Miscellaneous Functions & Events,biscuits for meetings
16-May-19,People & Governance,Waitrose Ltd,5.97,Miscellaneous Functions & Events,mayoral reception
13-May-19,People & Governance,Www.Banneruk.Com,703.96,Computer Consumables and other Minor IT costs,Epson inks for print room wide format
13-May-19,People & Governance,Www.Banneruk.Com,90.24,Computer Consumables and other Minor IT costs,S/housing inks
21-May-19,People & Governance,Www.Banneruk.Com,162.97,Computer Consumables and other Minor IT costs,s/housing inks
29-May-19,People & Governance,Www.Banneruk.Com,84.65,Computer Consumables and other Minor IT costs,inks
29-May-19,People & Governance,Www.Banneruk.Com,37.56,Computer Consumables and other Minor IT costs,inks
30-May-19,People & Governance,Www.Courierexpert.Co.U,66.00,Advertising/Publicity,Same day courier of leaflets for delivery to Suffolk Show
31-May-19,People & Governance,Www.Ovendenpapers.,146.80,Miscellaneous Stock  - Purchases,Large Format Paper Rolls for the print room
14-May-19,People & Governance,Www.Paper.Co.Uk,454.58,Miscellaneous Stock  - Purchases,Paper supply for the print room
22-May-19,People & Governance,Www.Paper.Co.Uk,117.13,Miscellaneous Stock  - Purchases,Print Room Paper Supply
23-May-19,People & Governance,Www.Paper.Co.Uk,51.22,Miscellaneous Stock  - Purchases,Print Room Paper Supply
31-May-19,People & Governance,Www.Paper.Co.Uk,234.09,Miscellaneous Stock  - Purchases,Paper order for the print room
